fUST/lending_fUST_20240906
["ID","MTS","AMOUNT","RATE_DAILY","PERIOD"]
[337331185,1725606866838,-500.0,0.0005,120]
[337331186,1725606866892,-50045.15091816,0.0005,120]
[337331187,1725606866934,-2000.0,0.0005,120]
[337331188,1725606866983,-2500.0,0.0005,30]
[337331189,1725606867034,-500.0,0.0005,120]
[337331190,1725606867075,-15000.000007,0.0005,30]
[337331191,1725606867118,-816576.45629047,0.0005,120]
[337331192,1725607008279,536.91794492,0.00019883,2]
[337331193,1725607009095,-300.0,0.00019972,2]
[337331194,1725607009118,-500.31379239,0.00019973,2]
[337331195,1725607009141,-500.0,0.00019973,2]
[337331196,1725607009169,-500.0,0.00019973,2]
[337331197,1725607009192,-277.96767628,0.00019973,2]
[337331198,1725607009217,-500.0,0.00019973,2]
[337331199,1725607009240,-156.99552443,0.00019973,2]
[337331200,1725607009263,-500.0,0.00019973,2]
[337331201,1725607009285,-279.07732929,0.00019973,2]
[337331202,1725607009308,-500.0,0.00019973,2]
[337331203,1725607009330,-264.78,0.00019974,3]
[337331204,1725607009353,-794.37,0.00019974,3]
[337331205,1725607009376,-376.83535152,0.00019983,2]
[337331206,1725607009400,-500.0,0.00019983,2]
[337331207,1725607009425,-500.0,0.00019983,2]
[337331208,1725607009449,-301.89886758,0.00019983,2]
[337331209,1725607009474,-500.0,0.00019983,2]
[337331210,1725607009498,-500.0,0.00019983,2]
[337331211,1725607009521,-500.0,0.00019983,2]
[337331212,1725607009544,-500.0,0.00019983,2]
[337331213,1725607009566,-508.20528604,0.00019983,2]
[337331214,1725607009588,-500.0,0.00019983,2]
[337331215,1725607009610,-500.0,0.00019983,2]
[337331216,1725607009635,-500.0,0.00019983,2]
[337331217,1725607009657,-500.0,0.00019983,2]
[337331218,1725607009680,-500.0,0.00019983,2]
[337331219,1725607009702,-734.5,0.00019983,2]
[337331220,1725607009727,-507.43,0.00019983,2]
[337331221,1725607009749,-587.86,0.00019983,2]
[337331222,1725607009772,-323.22107093,0.00019983,2]
[337331223,1725607009795,-500.0,0.00019983,2]
[337331224,1725607009817,-500.0,0.00019983,2]
[337331225,1725607009839,-500.0,0.00019983,2]
[337331226,1725607009866,-500.0,0.00019983,2]
[337331227,1725607009889,-500.0,0.00019983,2]
[337331228,1725607009912,-500.0,0.00019983,2]
[337331229,1725607009935,-500.0,0.00019983,2]
[337331230,1725607009958,-539.4,0.00019983,2]
[337331231,1725607009980,-505.87546954,0.00019983,2]
[337331232,1725607010003,-504.82884184,0.00019983,2]
[337331233,1725607010025,-504.83075436,0.00019983,2]
[337331234,1725607010048,-579.04841959,0.00019983,2]
[337331235,1725607010071,-512.91056482,0.00019983,2]
[337331236,1725607010095,-815.25,0.00019983,2]
[337331237,1725607010117,-506.29547408,0.00019983,2]
[337331238,1725607010139,-500.0,0.00019983,2]
[337331239,1725607010162,-501.51232267,0.00019983,2]
[337331240,1725607010186,-500.0,0.00019983,2]
[337331241,1725607010209,-500.0,0.00019983,2]
[337331242,1725607010231,-500.0,0.00019983,2]
[337331243,1725607010252,-512.00577619,0.00019983,2]
[337331244,1725607010274,-500.0,0.00019983,2]
[337331245,1725607010296,-500.0,0.00019983,2]
[337331246,1725607010319,-500.0,0.00019983,2]
[337331247,1725607010340,-500.0,0.00019983,2]
[337331248,1725607010361,-500.0,0.00019983,2]
[337331249,1725607010383,-500.0,0.00019983,2]
[337331250,1725607010405,-504.59190074,0.00019983,2]
[337331251,1725607010426,-500.0,0.00019983,2]
[337331252,1725607010449,-500.0,0.00019983,2]
[337331253,1725607010472,-500.0,0.00019983,2]
[337331254,1725607010494,-500.0,0.00019983,2]
[337331255,1725607010516,-520.56,0.00019983,2]
[337331256,1725607010537,-500.0,0.00019983,2]
[337331257,1725607010559,-500.0,0.00019983,2]
[337331258,1725607010581,-500.0,0.00019983,2]
[337331259,1725607010861,-640.38,0.00019983,2]
[337331260,1725607010882,-150.0,0.00019983,2]
[337331261,1725607010903,-714.67,0.00019983,2]
[337331262,1725607010924,-500.0,0.00019983,2]
[337331263,1725607010946,-510.85387275,0.00019983,2]
[337331264,1725607010968,-500.0,0.00019983,2]
[337331265,1725607010989,-500.0,0.00019983,2]
[337331266,1725607011011,-500.0,0.00019983,2]
[337331267,1725607011033,-500.0,0.00019983,2]
[337331268,1725607011054,-500.0,0.00019983,2]
[337331269,1725607011076,-500.0,0.00019983,2]
[337331270,1725607011099,-1423.52,0.00019983,2]
[337331271,1725607011120,-500.0,0.00019983,2]
[337331272,1725607011143,-151.97934093,0.00019983,2]
[337331273,1725607011166,-500.0,0.00019983,2]
[337331274,1725607011192,-500.0,0.00019983,2]
[337331275,1725607011223,-525.54140889,0.00019983,2]
[337331276,1725607011246,-500.0,0.00019983,2]
[337331277,1725607011271,-5101.16,0.00019983,2]
[337331278,1725607011293,-500.0,0.00019983,2]
[337331279,1725607011315,-500.0,0.00019983,2]
[337331280,1725607011337,-501.91684956,0.00019983,2]
[337331281,1725607011362,-2886.7375477,0.00019984,15]
[337331282,1725607011399,158.68822722,0.00019973,2]
[337331283,1725607013162,500.0,0.00019983,2]
[337331284,1725607015412,500.0,0.00019983,2]
[337331285,1725607015623,500.0,0.00019983,2]
[337331286,1725607017632,500.0,0.00019983,2]
[337331287,1725607018052,1057.93,0.00019983,2]
[337331288,1725607020003,235.38838712,0.00019973,2]
[337331289,1725607020125,1280.35,0.00019983,2]
[337331290,1725607020160,500.0,0.00019983,2]
[337331291,1725607020639,300.0,0.00019983,2]
[337331292,1725607020666,500.0,0.00019983,2]
[337331293,1725607024109,500.0,0.00019983,2]
[337331294,1725607024711,500.0,0.00019983,2]
[337331295,1725607026136,500.0,0.00019983,2]
[337331296,1725607029890,-197.31685468,0.00019973,2]
[337331297,1725607029913,-17950.2201272,0.00019984,2]
[337331298,1725607029936,-739747.78296166,0.00019984,2]
[337331300,1725607115221,-300.0,0.00019982,2]
[337331301,1725607115248,-44033.1912662,0.00019983,2]
[337331302,1725607115271,-163510.343842,0.00019983,2]
[337331303,1725607115296,-500.0,0.00019983,2]
[337331304,1725607115318,-500.0,0.00019983,2]
[337331305,1725607115342,-513.02,0.00019983,2]
[337331306,1725607115364,-500.0,0.00019983,2]
[337331307,1725607115386,-500.0,0.00019983,2]
[337331308,1725607115409,-945.04,0.00019983,2]
[337331309,1725607115432,-500.0,0.00019983,2]
[337331310,1725607115454,-500.0,0.00019983,2]
[337331311,1725607115477,-500.0,0.00019983,2]
[337331312,1725607115498,-500.0,0.00019983,2]
[337331313,1725607115520,-500.0,0.00019983,2]
[337331314,1725607115544,-500.0,0.00019983,2]
[337331315,1725607115566,-500.0,0.00019983,2]
[337331316,1725607115587,-500.0,0.00019983,2]
[337331317,1725607115609,-500.0,0.00019983,2]
[337331318,1725607115630,-500.0,0.00019983,2]
[337331319,1725607115652,-645.97,0.00019983,2]
[337331320,1725607115677,-7270.96,0.00019983,2]
[337331321,1725607115698,-500.0,0.00019983,2]
[337331322,1725607115722,-210.53114992,0.00019983,2]
[337331323,1725607115744,-500.0,0.00019983,2]
[337331324,1725607115768,-500.0,0.00019983,2]
[337331325,1725607115803,-500.0,0.00019983,2]
[337331326,1725607115826,-500.0,0.00019983,2]
[337331327,1725607115848,-500.0,0.00019983,2]
[337331328,1725607115871,-1609.93,0.00019983,2]
[337331329,1725607115894,-500.0,0.00019983,2]
[337331330,1725607115916,-500.0,0.00019983,2]
[337331331,1725607115939,-500.0,0.00019983,2]
[337331332,1725607115961,-500.0,0.00019983,2]
[337331333,1725607115984,-500.0,0.00019983,2]
[337331334,1725607116007,-519.66980024,0.00019983,2]
[337331335,1725607116028,-912.48,0.00019983,2]
[337331336,1725607116055,-500.0,0.00019983,2]
[337331337,1725607116078,-1794.53,0.00019983,2]
[337331338,1725607116100,-500.0,0.00019983,2]
[337331339,1725607116123,-1174.56,0.00019983,2]
[337331340,1725607116145,-773.85,0.00019983,2]
[337331341,1725607116167,-500.0,0.00019983,2]
[337331342,1725607116189,-500.0,0.00019983,2]
[337331343,1725607116211,-769.61,0.00019983,2]
[337331344,1725607116234,-663.05,0.00019983,2]
[337331345,1725607116256,-500.0,0.00019983,2]
[337331346,1725607116278,-500.0,0.00019983,2]
[337331347,1725607116302,-282.62294655,0.00019983,2]
[337331348,1725607116326,-30783.64099509,0.00019984,2]
[337331424,1725607214163,469.80320177,0.00019883,2]
[337331441,1725607404425,411.07780154,0.00019882,2]
[337331442,1725607526650,2411.63392059,0.00019894,2]
[337331443,1725607539234,873.43381075,0.00019882,2]
[337331444,1725607545704,157.01478574,0.00019863,7]
[337331445,1725607547829,7171.14271354,0.00019893,2]
[337331446,1725607595504,359.69307633,0.00019873,2]
[337331447,1725607595924,450.87015106,0.00019874,2]
[337331448,1725607598009,450.87015104,0.00019876,2]
[337331449,1725607599889,450.87015104,0.00019879,2]
[337331450,1725607601933,450.87015104,0.00019881,2]
[337331451,1725607603882,450.87015104,0.00019883,2]
[337331456,1725607732469,589.85368473,0.00019,2]
[337331457,1725607733436,330.4224947,0.00019873,2]
[337331490,1725607831743,-559.39,0.00019953,3]
[337331491,1725607831754,-300.0,0.00019961,2]
[337331492,1725607831764,-300.0,0.00019961,2]
[337331493,1725607831773,-424.05978228,0.00019962,2]
[337331494,1725607831784,-483.53064117,0.00019962,2]
[337331495,1725607831795,-500.0,0.00019962,2]
[337331496,1725607831804,-166.10689125,0.00019962,2]
[337331497,1725607831815,-46.9126853,0.00019962,2]
[337331498,1725607831877,-453.0873147,0.00019962,2]
[337331499,1725607831888,-500.0,0.00019962,2]
[337331500,1725607831900,-500.0,0.00019962,2]
[337331501,1725607831910,-66.70439676,0.00019962,2]
[337331531,1725607839350,-531.56387916,0.00019962,2]
[337331532,1725607839360,-500.0,0.00019962,2]
[337331533,1725607839369,-500.0,0.00019962,2]
[337331534,1725607839378,-500.0,0.00019962,2]
[337331535,1725607839389,-500.0,0.00019962,2]
[337331536,1725607839402,-500.0,0.00019962,2]
[337331537,1725607839412,-268.38362084,0.00019962,2]
[337331542,1725607839698,-308.45638369,0.00019962,2]
[337331543,1725607839710,-5.85245798,0.00019962,2]
[337331544,1725607839720,-500.0,0.00019962,2]
[337331545,1725607839730,-164.94498241,0.00019962,2]
[337331546,1725607839740,-423.77594065,0.00019962,2]
[337331547,1725607839749,-500.0,0.00019962,2]
[337331548,1725607839758,-500.0,0.00019962,2]
[337331549,1725607839768,-500.0,0.00019962,2]
[337331550,1725607839777,-500.0,0.00019962,2]
[337331551,1725607839787,-500.0,0.00019962,2]
[337331552,1725607839796,-243.23333666,0.00019962,2]
[337331553,1725607839805,-500.0,0.00019962,2]
[337331554,1725607839815,-499.99999999,0.00019962,2]
[337331555,1725607839824,-150.0,0.00019963,2]
[337331556,1725607839833,-500.0,0.00019963,2]
[337331557,1725607839843,-1819.0,0.00019963,2]
[337331558,1725607839853,-500.0,0.00019963,2]
[337331559,1725607839862,-500.0,0.00019963,2]
[337331561,1725607839871,-508.81052997,0.00019963,2]
[337331562,1725607839881,-500.0,0.00019963,2]
[337331563,1725607839890,-500.0,0.00019963,2]
[337331564,1725607839902,-500.0,0.00019963,2]
[337331565,1725607839911,-500.0,0.00019963,2]
[337331566,1725607840046,-500.0,0.00019963,2]
[337331567,1725607840056,-500.0,0.00019963,2]
[337331568,1725607840066,-500.0,0.00019963,2]
[337331569,1725607840075,-500.0,0.00019963,2]
[337331570,1725607840084,-500.0,0.00019963,2]
[337331571,1725607840093,-500.0,0.00019963,2]
[337331572,1725607840102,-500.0,0.00019963,2]
[337331574,1725607840113,-500.0,0.00019963,2]
[337331575,1725607840122,-500.0,0.00019963,2]
[337331576,1725607840132,-500.0,0.00019963,2]
[337331577,1725607840141,-500.0,0.00019963,2]
[337331578,1725607840152,-500.0,0.00019963,2]
[337331579,1725607840162,-500.0,0.00019963,2]
[337331580,1725607840171,-500.0,0.00019963,2]
[337331581,1725607840180,-500.0,0.00019963,2]
[337331582,1725607840189,-500.0,0.00019963,2]
[337331583,1725607840199,-500.0,0.00019963,2]
[337331584,1725607840208,-500.0,0.00019963,2]
[337331585,1725607840217,-500.0,0.00019963,2]
[337331586,1725607840231,-500.0,0.00019963,2]
[337331587,1725607840240,-500.0,0.00019963,2]
[337331588,1725607840250,-500.0,0.00019963,2]
[337331589,1725607840259,-646.51,0.00019963,2]
[337331590,1725607840269,-12216.69490039,0.00019963,3]
[337331591,1725607840278,-242655.550731,0.00019963,2]
[337331592,1725607840287,-574473.69017406,0.00019963,2]
[337331593,1725607840299,-2669.49321411,0.00019963,2]
[337331594,1725607840945,-9316.56894183,0.00019963,2]
[337331595,1725607840955,-1570.52,0.00019972,2]
[337331596,1725607840964,-5058.39,0.00019972,2]
[337331597,1725607840974,-943.59,0.00019972,2]
[337331598,1725607840984,-500.0,0.00019972,2]
[337331599,1725607840993,-1406.42,0.00019972,2]
[337331600,1725607841003,-1005.16,0.00019972,2]
[337331601,1725607841012,-500.0,0.00019972,2]
[337331602,1725607841023,-516.66,0.00019972,2]
[337331603,1725607841032,-1542.85,0.00019972,2]
[337331604,1725607841042,-6968.0,0.00019972,2]
[337331605,1725607841051,-1440.4,0.00019972,2]
[337331606,1725607841060,-1078.33,0.00019972,2]
[337331607,1725607841070,-1719.76,0.00019972,2]
[337331608,1725607841080,-500.42384969,0.00019973,2]
[337331609,1725607841089,-500.0,0.00019973,2]
[337331610,1725607841099,-500.0,0.00019973,2]
[337331611,1725607841108,-253.62258838,0.00019973,2]
[337331612,1725607841117,-212.08033214,0.00019973,2]
[337331613,1725607841127,-161.18013156,0.00019973,2]
[337331614,1725607841137,-500.0,0.00019973,2]
[337331615,1725607841146,-179.02508858,0.00019973,2]
[337331616,1725607841159,-500.0,0.00019973,2]
[337331617,1725607841168,-401.34076246,0.00019973,2]
[337331618,1725607841177,-299.55849019,0.00019973,2]
[337331619,1725607841186,-500.0,0.00019973,2]
[337331620,1725607841195,-553.41967235,0.00019973,2]
[337331621,1725607841204,-500.0,0.00019973,2]
[337331622,1725607841214,-1125.62,0.00019981,2]
[337331623,1725607841224,-1266.82,0.00019981,2]
[337331624,1725607841234,-500.0,0.00019981,2]
[337331625,1725607841244,-569.17,0.00019981,2]
[337331626,1725607841253,-1704.4,0.00019981,2]
[337331627,1725607841262,-2319.43,0.00019981,2]
[337331628,1725607841272,-500.0,0.00019981,2]
[337331629,1725607841281,-2370.04,0.00019981,2]
[337331630,1725607841291,-500.0,0.00019981,2]
[337331631,1725607841300,-1656.68,0.00019981,2]
[337331632,1725607841310,-1515.99,0.00019981,2]
[337331633,1725607841319,-500.0,0.00019981,2]
[337331634,1725607841328,-1205.33,0.00019981,2]
[337331635,1725607841338,-16368.14569599,0.00019981,2]
[337331636,1725607841351,-4075.60430401,0.00019981,2]
[337331637,1725607841360,-500.0,0.00019981,2]
[337331638,1725607841369,-1266.4,0.00019981,2]
[337331639,1725607841379,-2339.0,0.00019981,2]
[337331640,1725607841389,-1878.28,0.00019981,2]
[337331641,1725607841398,-797.59,0.00019981,2]
[337331642,1725607841409,-500.0,0.00019981,2]
[337331643,1725607841418,-500.0,0.00019981,2]
[337331644,1725607841428,-500.0,0.00019981,2]
[337331645,1725607841438,-2777.6,0.00019981,2]
[337331646,1725607841447,-500.0,0.00019981,2]
[337331647,1725607841457,-500.0,0.00019981,2]
[337331648,1725607841466,-2687.59,0.00019981,2]
[337331649,1725607841476,-1659.01,0.00019981,2]
[337331650,1725607841486,-1043.81,0.00019981,2]
[337331651,1725607841495,-571.64414905,0.00019981,2]
[337331652,1725607841504,-515.37538065,0.00019981,2]
[337331653,1725607841514,-500.0,0.00019981,2]
[337331654,1725607841523,-906.41,0.00019981,2]
[337331655,1725607841533,-2284.35,0.00019981,2]
[337331656,1725607841542,-500.0,0.00019981,2]
[337331657,1725607841551,-721.77,0.00019981,2]
[337331658,1725607841561,-575.7,0.00019981,2]
[337331659,1725607841575,-500.0,0.00019981,2]
[337331660,1725607841585,-496.0956737,0.00019982,2]
[337331661,1725607841594,-500.0,0.00019982,2]
[337331662,1725607841605,-500.0,0.00019982,2]
[337331663,1725607841614,-500.0,0.00019982,2]
[337331664,1725607841624,-510.20392385,0.00019982,2]
[337331665,1725607841633,-1149.31,0.00019982,2]
[337331666,1725607841643,-856.21,0.00019982,2]
[337331667,1725607841654,-500.0,0.00019982,2]
[337331668,1725607841664,-500.0,0.00019982,2]
[337331669,1725607841674,-840.47,0.00019982,2]
[337331670,1725607841684,-500.0,0.00019982,2]
[337331671,1725607841694,-500.0,0.00019982,2]
[337331672,1725607841704,-634.68,0.00019982,2]
[337331673,1725607841714,-500.0,0.00019982,2]
[337331674,1725607841724,-500.0,0.00019982,2]
[337331675,1725607841733,-227.08039559,0.00019982,2]
[337331676,1725607841744,-500.0,0.00019982,2]
[337331677,1725607841754,-611.2,0.00019982,2]
[337331678,1725607841764,-500.0,0.00019982,2]
[337331679,1725607841774,-500.0,0.00019982,2]
[337331680,1725607841785,-500.0,0.00019982,2]
[337331681,1725607841795,-500.0,0.00019982,2]
[337331682,1725607841806,-500.0,0.00019982,2]
[337331683,1725607841816,-505.79494573,0.00019982,2]
[337331684,1725607841825,-500.0,0.00019982,2]
[337331685,1725607841835,-500.0,0.00019982,2]
[337331686,1725607841846,-500.0,0.00019982,2]
[337331687,1725607841856,-500.0,0.00019982,2]
[337331688,1725607841865,-500.0,0.00019982,2]
[337331689,1725607841875,-2025.69,0.00019982,2]
[337331690,1725607841885,-500.0,0.00019982,2]
[337331691,1725607841894,-789.41,0.00019982,2]
[337331692,1725607841906,-500.0,0.00019982,2]
[337331693,1725607841915,-652.92,0.00019982,2]
[337331694,1725607841926,-500.0,0.00019982,2]
[337331695,1725607841936,-603.34,0.00019982,2]
[337331696,1725607841950,-500.0,0.00019982,2]
[337331697,1725607841960,-1387.21,0.00019982,2]
[337331698,1725607841970,-500.0,0.00019982,2]
[337331699,1725607841979,-1883.25,0.00019982,2]
[337331700,1725607841990,-840.62,0.00019982,2]
[337331701,1725607842000,-569.17,0.00019982,2]
[337331702,1725607842010,-569.17,0.00019982,2]
[337331703,1725607842021,-569.17,0.00019982,2]
[337331704,1725607842031,-500.0,0.00019982,2]
[337331705,1725607842041,-1509.33,0.00019982,2]
[337331706,1725607842051,-500.0,0.00019982,2]
[337331707,1725607842061,-500.0,0.00019982,2]
[337331708,1725607842070,-267.21,0.00019982,2]
[337331709,1725607842080,-1880.86,0.00019982,2]
[337331710,1725607842090,-2568.09,0.00019982,2]
[337331712,1725607842273,-718.8,0.00019982,2]
[337331713,1725607842285,-531.57970184,0.00019982,2]
[337331714,1725607842295,-500.0,0.00019982,2]
[337331715,1725607842305,-2689.47,0.00019982,2]
[337331716,1725607842315,-500.0,0.00019982,2]
[337331717,1725607842326,-500.0,0.00019982,2]
[337331718,1725607842336,-765.41,0.00019982,2]
[337331720,1725607842345,-1669.12,0.00019982,2]
[337331722,1725607842355,-500.0,0.00019982,2]
[337331724,1725607842364,-500.0,0.00019982,2]
[337331725,1725607842374,-3137.35,0.00019982,2]
[337331726,1725607842383,-525.85,0.00019982,2]
[337331728,1725607842393,-500.0,0.00019982,2]
[337331730,1725607842408,-500.0,0.00019982,2]
[337331732,1725607842418,-500.0,0.00019982,2]
[337331734,1725607842428,-586.11902289,0.00019982,2]
[337331737,1725607842437,-1349.67,0.00019982,2]
[337331739,1725607842447,-541.66,0.00019982,2]
[337331741,1725607842458,-1916.46,0.00019982,2]
[337331743,1725607842467,-997.61,0.00019982,2]
[337331746,1725607842477,-500.0,0.00019982,2]
[337331749,1725607842487,-500.0,0.00019982,2]
[337331751,1725607842496,-500.0,0.00019982,2]
[337331753,1725607842505,-500.0,0.00019982,2]
[337331757,1725607842515,-38812.4,0.00019982,2]
[337331761,1725607842525,-1213.83,0.00019982,2]
[337331763,1725607842535,-616.23,0.00019982,2]
[337331765,1725607842544,-500.0,0.00019982,2]
[337331767,1725607842554,-500.0,0.00019982,2]
[337331768,1725607842564,-608.92,0.00019982,2]
[337331770,1725607842573,-500.0,0.00019982,2]
[337331771,1725607842583,-500.0,0.00019982,2]
[337331772,1725607842602,-500.0,0.00019982,2]
[337331773,1725607842613,-2204.9,0.00019982,2]
[337331774,1725607842623,-500.0,0.00019982,2]
[337331775,1725607842632,-951.13,0.00019982,2]
[337331776,1725607842643,-915.39,0.00019982,2]
[337331777,1725607842655,-500.0,0.00019982,2]
[337331778,1725607842664,-968.03,0.00019982,2]
[337331779,1725607842674,-1000.0,0.00019982,2]
[337331780,1725607842685,-500.0,0.00019982,2]
[337331781,1725607842694,-500.0,0.00019982,2]
[337331782,1725607842704,-2089.37,0.00019982,2]
[337331783,1725607842713,-674.16,0.00019982,2]
[337331784,1725607842723,-2504.03,0.00019982,2]
[337331785,1725607842733,-221.18392883,0.00019982,2]
[337331786,1725607842742,-2778.95,0.00019982,2]
[337331787,1725607842752,-7140.05,0.00019982,2]
[337331788,1725607842762,-2812.8,0.00019982,2]
[337331789,1725607842772,-500.0,0.00019982,2]
[337331790,1725607842781,-1991.73,0.00019982,2]
[337331791,1725607842791,-500.0,0.00019982,2]
[337331792,1725607842801,-2584.02,0.00019982,2]
[337331793,1725607842811,-500.0,0.00019982,2]
[337331794,1725607842821,-1815.03,0.00019982,2]
[337331795,1725607842831,-500.0,0.00019982,2]
[337331796,1725607842841,-500.0,0.00019983,2]
[337331797,1725607842852,-501.83282926,0.00019983,2]
[337331798,1725607842861,-528.28439759,0.00019983,2]
[337331799,1725607842871,-500.0,0.00019983,2]
[337331800,1725607842881,-500.0,0.00019983,2]
[337331801,1725607842891,-500.0,0.00019983,2]
[337331802,1725607842903,-500.0,0.00019983,2]
[337331803,1725607842914,-200.0,0.00019983,2]
[337331804,1725607842923,-500.0,0.00019983,2]
[337331805,1725607842932,-500.0,0.00019983,2]
[337331806,1725607842944,-500.0,0.00019983,2]
[337331807,1725607842954,-500.0,0.00019983,2]
[337331808,1725607842964,-500.0,0.00019983,2]
[337331809,1725607842974,-500.0,0.00019983,2]
[337331811,1725607842984,-502.83417427,0.00019983,2]
[337331813,1725607842994,-500.0,0.00019983,2]
[337331814,1725607843004,-508.35800659,0.00019983,2]
[337331816,1725607843015,-500.0,0.00019983,2]
[337331817,1725607843025,-500.0,0.00019983,2]
[337331818,1725607843035,-500.0,0.00019983,2]
[337331819,1725607843045,-500.0,0.00019983,2]
[337331820,1725607843055,-500.0,0.00019983,2]
[337331821,1725607843065,-500.0,0.00019983,2]
[337331822,1725607843075,-500.0,0.00019983,2]
[337331823,1725607843085,-500.0,0.00019983,2]
[337331824,1725607843095,-615.18903807,0.00019983,2]
[337331825,1725607843105,-500.0,0.00019983,2]
[337331826,1725607843115,-500.0,0.00019983,2]
[337331827,1725607843124,-500.0,0.00019983,2]
[337331828,1725607843135,-500.0,0.00019983,2]
[337331829,1725607843144,-500.0,0.00019983,2]
[337331830,1725607843158,-500.0,0.00019983,2]
[337331831,1725607843173,-353.93892279,0.00019983,2]
[337331832,1725607843182,-500.0,0.00019983,2]
[337331833,1725607843192,-500.0,0.00019983,2]
[337331834,1725607843202,-500.0,0.00019983,2]
[337331835,1725607843211,-500.0,0.00019983,2]
[337331836,1725607843220,-500.0,0.00019983,2]
[337331837,1725607843230,-551.92,0.00019983,2]
[337331838,1725607843239,-500.0,0.00019983,2]
[337331839,1725607843249,-539.28358815,0.00019983,2]
[337331841,1725607843259,-500.0,0.00019983,2]
[337331843,1725607843269,-500.0,0.00019983,2]
[337331844,1725607843279,-512.34438851,0.00019983,2]
[337331845,1725607843288,-500.0,0.00019983,2]
[337331846,1725607843297,-500.0,0.00019983,2]
[337331847,1725607843306,-500.0,0.00019983,2]
[337331848,1725607843315,-657.43,0.00019983,2]
[337331849,1725607843325,-500.0,0.00019983,2]
[337331850,1725607843334,-500.0,0.00019983,2]
[337331851,1725607843344,-500.0,0.00019983,2]
[337331852,1725607843354,-500.0,0.00019983,2]
[337331853,1725607843364,-500.0,0.00019983,2]
[337331854,1725607843373,-500.0,0.00019983,2]
[337331855,1725607843383,-500.0,0.00019983,2]
[337331856,1725607843392,-500.0,0.00019983,2]
[337331857,1725607843402,-500.0,0.00019983,2]
[337331858,1725607843413,-500.0,0.00019983,2]
[337331859,1725607843422,-500.0,0.00019983,2]
[337331860,1725607843431,-521.51701533,0.00019983,2]
[337331861,1725607843440,-500.0,0.00019983,2]
[337331862,1725607843450,-500.0,0.00019983,2]
[337331863,1725607843460,-552.22032543,0.00019983,2]
[337331864,1725607843470,-500.0,0.00019983,2]
[337331865,1725607843479,-500.0,0.00019983,2]
[337331866,1725607843488,-387.75542925,0.00019983,2]
[337331867,1725607843498,-500.0,0.00019983,2]
[337331868,1725607843508,-500.0,0.00019983,2]
[337331869,1725607843517,-500.0,0.00019983,2]
[337331870,1725607843527,-500.0,0.00019983,2]
[337331871,1725607843537,-500.0,0.00019983,2]
[337331872,1725607843547,-500.0,0.00019983,2]
[337331873,1725607843556,-500.0,0.00019983,2]
[337331874,1725607843566,-500.0,0.00019983,2]
[337331875,1725607843575,-500.0,0.00019983,2]
[337331876,1725607843584,-500.0,0.00019983,2]
[337331877,1725607843593,-730.22,0.00019983,2]
[337331878,1725607843603,-500.0,0.00019983,2]
[337331879,1725607843612,-2029.02,0.00019983,2]
[337331880,1725607843621,-500.0,0.00019983,2]
[337331881,1725607843631,-500.0,0.00019983,2]